{"text_format":"1","workbook":"xlsx","n_sheets":1,"sheets":["Hoja1"],"not_rendered":{"charts":0,"images":0,"macros":1,"external_links":0,"defined_names":0,"comments":0,"pivot_tables":0},"unopened":[],"bounds":{"document_bytes":16777216,"sheet_cells":100000,"rows_first":2000,"rows_last":500,"rows_between":2000,"halvings":0,"cell_chars":16384,"cell_head_chars":4096},"cells_cut":0,"cells_raw":0,"read":"whole","date_system":"1900"}

{"sheet":"Hoja1","index":0,"n_rows":29,"n_cols":31,"rows_kept":29,"cut":false,"hidden":false,"merged":[[2,21,2,22],[2,23,2,24],[1,17,2,18],[0,1,0,14],[1,11,1,12],[2,11,2,12],[2,5,2,6],[0,17,0,30],[2,9,2,10],[1,7,1,10],[1,30,2,30],[1,29,2,29],[2,7,2,8],[1,27,1,28],[2,27,2,28],[1,13,1,14],[2,13,2,14],[2,25,2,26],[1,21,1,26],[1,19,1,20],[2,3,2,4],[1,1,2,2],[1,3,1,4],[1,5,1,6],[2,19,2,20]]}
[null,"COMPETENCIAS SOCIAIS E CÍVICAS 1º PRIMARIA (I)",null,null,null,null,null,null,null,null,null,null,null,null,null,null,null,"COMPETENCIAS SOCIAIS E CÍVICAS 1º PRIMARIA (II)"]
[null,"1º A",null,"C. DA NATUREZA",null,"CIENCIAS SOCIAIS",null,"EDUCACIÓN FÍSICA",null,null,null,"E. MUSICAL",null,"E. PLÁSTICA",null,null,null,"1º A",null,"L. CASTELÁ",null,"LINGUA GALEGA",null,null,null,null,null,"L ESTRANXEIRA",null,"NOTA MEDIA","CUALIFICACIÓN"]
[null,null,null,"1º-CNB1.2.1 - Utiliza estratexias para traballar de forma individual e en equipo e respecta os compañeiros/as, o material e as normas de convivencia.",null,"1º-CSB1.2.1 - Participa en actividades individuais e de grupo adoitando un comportamento responsable, construtivo e solidario, valorando o esforzo e o coidado do material.",null,"1º-EFB1.1.1 - Mostra boa disposición para solucionar os conflitos de xeito razoable.",null,"1º-EFB2.1.1 - Respecta a diversidade de realidades corporais entre os nenos e nenas da clase",null,"1º-EMB3.1.2 - Interactúa adecuadamente cos compañeiros e coas compañeiras, amosando interese e respectando as normas e as intervencións das demais persoas.",null,"1º-EPB2.3.1 - Respecta as normas preestablecidas e coida os materiais, os utensilios e os espazos.",null,null,null,null,null,"1º-LCB.1.1.2 - Aplica as normas socio- comunicativas: escoita e respecta a quenda de palabras.",null,"1º-LGB1.4.1 - Atende as intervencións dos e das demais, en conversas e exposicións, sen interromper.",null,"1º-LGB1.5.2 - Respecta as opinións das persoas participantes nos intercambios orais.",null,"1º-LGB1.5.6 - Participa na conversa formulando e contestando preguntas. ",null,"1º-PLEB2.3 - Amosa unha actitude de escoita atenta"]
[null,null,"ALUMNO /A","Nota",0.1,"Nota",0.1,"Nota",0.1,"Nota",0.05,"Nota",0.1,"Nota",0.05,null,null,null,"ALUMNO /A","Nota",0.2,"Nota",0.05,"Nota",0.1,"Nota",0.05,"Nota",0.1,1]
[null,1,null,null,{"$f":"D5*0.1","v":0},null,{"$f":"F5*0.1","v":0},null,{"$f":"H5*0.1","v":0},null,{"$f":"J5*0.05","v":0},null,{"$f":"L5*0.1","v":0},null,{"$f":"N5*0.05","v":0},null,null,1,null,null,{"$f":"T5*0.2","v":0},null,{"$f":"V5*0.05","v":0},null,{"$f":"X5*0.1","v":0},null,{"$f":"Z5*0.05","v":0},null,{"$f":"AB5*0.1","v":0},{"$f":"SUM(AC5,AA5,Y5,W5,U5,O5,M5,K5,I5,G5,E5)","v":0},{"$f":"IF(AD5<5,\"INSUFICIENTE\",IF(AD5<6,\"SUFICIENTE\",IF(AD5<7,\"BIEN\",IF(AD5<9,\"NOTABLE\",\"SOBRESALIENTE\"))))","v":"INSUFICIENTE"}]
[null,2,null,null,{"$f":"D6*0.1","v":0},null,{"$f":"F6*0.1","v":0},null,{"$f":"H6*0.1","v":0},null,{"$f":"J6*0.05","v":0},null,{"$f":"L6*0.1","v":0},null,{"$f":"N6*0.05","v":0},null,null,2,null,null,{"$f":"T6*0.2","v":0},null,{"$f":"V6*0.05","v":0},null,{"$f":"X6*0.1","v":0},null,{"$f":"Z6*0.05","v":0},null,{"$f":"AB6*0.1","v":0},{"$f":"SUM(AC6,AA6,Y6,W6,U6,O6,M6,K6,I6,G6,E6)","v":0},{"$f":"IF(AD6<5,\"INSUFICIENTE\",IF(AD6<6,\"SUFICIENTE\",IF(AD6<7,\"BIEN\",IF(AD6<9,\"NOTABLE\",\"SOBRESALIENTE\"))))","v":"INSUFICIENTE"}]
[null,3,null,null,0,null,0,null,0,null,0,null,0,null,0,null,null,3,null,null,0,null,0,null,0,null,0,null,0,0,"INSUFICIENTE"]
[null,4,null,null,0,null,0,null,0,null,0,null,0,null,0,null,null,4,null,null,0,null,0,null,0,null,0,null,0,0,"INSUFICIENTE"]
[null,5,null,null,0,null,0,null,0,null,0,null,0,null,0,null,null,5,null,null,0,null,0,null,0,null,0,null,0,0,"INSUFICIENTE"]
[null,{"$f":"B9+1","v":6},null,null,0,null,0,null,0,null,0,null,0,null,0,null,null,{"$f":"R9+1","v":6},null,null,0,null,0,null,0,null,0,null,0,0,"INSUFICIENTE"]
[null,{"$f":"B10+1","v":7},null,null,0,null,0,null,0,null,0,null,0,null,0,null,null,{"$f":"R10+1","v":7},null,null,0,null,0,null,0,null,0,null,0,0,"INSUFICIENTE"]
[null,8,null,null,0,null,0,null,0,null,0,null,0,null,0,null,null,8,null,null,0,null,0,null,0,null,0,null,0,0,"INSUFICIENTE"]
[null,9,null,null,0,null,0,null,0,null,0,null,0,null,0,null,null,9,null,null,0,null,0,null,0,null,0,null,0,0,"INSUFICIENTE"]
[null,10,null,null,0,null,0,null,0,null,0,null,0,null,0,null,null,10,null,null,0,null,0,null,0,null,0,null,0,0,"INSUFICIENTE"]
[null,11,null,null,0,null,0,null,0,null,0,null,0,null,0,null,null,11,null,null,0,null,0,null,0,null,0,null,0,0,"INSUFICIENTE"]
[null,12,null,null,0,null,0,null,0,null,0,null,0,null,0,null,null,12,null,null,0,null,0,null,0,null,0,null,0,0,"INSUFICIENTE"]
[null,13,null,null,0,null,0,null,0,null,0,null,0,null,0,null,null,13,null,null,0,null,0,null,0,null,0,null,0,0,"INSUFICIENTE"]
[null,14,null,null,0,null,0,null,0,null,0,null,0,null,0,null,null,14,null,null,0,null,0,null,0,null,0,null,0,0,"INSUFICIENTE"]
[null,15,null,null,0,null,0,null,0,null,0,null,0,null,0,null,null,15,null,null,0,null,0,null,0,null,0,null,0,0,"INSUFICIENTE"]
[null,16,null,null,0,null,0,null,0,null,0,null,0,null,0,null,null,16,null,null,0,null,0,null,0,null,0,null,0,0,"INSUFICIENTE"]
[null,17,null,null,0,null,0,null,0,null,0,null,0,null,0,null,null,17,null,null,0,null,0,null,0,null,0,null,0,0,"INSUFICIENTE"]
[null,18,null,null,0,null,0,null,0,null,0,null,0,null,0,null,null,18,null,null,0,null,0,null,0,null,0,null,0,0,"INSUFICIENTE"]
[null,19,null,null,0,null,0,null,0,null,0,null,0,null,0,null,null,19,null,null,0,null,0,null,0,null,0,null,0,0,"INSUFICIENTE"]
[null,20,null,null,0,null,0,null,0,null,0,null,0,null,0,null,null,20,null,null,0,null,0,null,0,null,0,null,0,0,"INSUFICIENTE"]
[null,21,null,null,0,null,0,null,0,null,0,null,0,null,0,null,null,21,null,null,0,null,0,null,0,null,0,null,0,0,"INSUFICIENTE"]
[null,22,null,null,0,null,0,null,0,null,0,null,0,null,0,null,null,22,null,null,0,null,0,null,0,null,0,null,0,0,"INSUFICIENTE"]
[null,23,null,null,0,null,0,null,0,null,0,null,0,null,0,null,null,23,null,null,0,null,0,null,0,null,0,null,0,0,"INSUFICIENTE"]
[null,24,null,null,0,null,0,null,0,null,0,null,0,null,0,null,null,24,null,null,0,null,0,null,0,null,0,null,0,0,"INSUFICIENTE"]
[null,25,null,null,0,null,0,null,0,null,0,null,0,null,0,null,null,25,null,null,0,null,0,null,0,null,0,null,0,0,"INSUFICIENTE"]